Cogmind - Beta 11 @@@ ROGUE MODE // 2022.03.26 @ 11:14:48 Player: raddakar Result: Self-destructed Performance ------------- Evolutions (5) 2500 Regions Visited (13) 2600 Robots Destroyed (167) 835 Value Destroyed (6208) 6208 Prototype IDs (34) 680 Alien Tech Used (0) 0 Bonus (3298) 3298 TOTAL SCORE: 16121 Bonus ------- High Alert Combat Kills 1398 Entered Garrisons 600 Used RIF Installer 1000 Aligned with FarCom 300 Cogmind --------- Core Integrity 224/1000 Matter 101/300 Energy 100/100 System Corruption 12% Temperature Cool (10) Movement Treading (240) Ox1 Location -5/Garrison Parts ------- > --- POWER (1) -------- (None) > --- PROPULSION (4) --- Improved Medium Treads > --- UTILITY (8) ------ High-capacity Storage Unit Advanced Visual Processing Unit Enhanced Optical Array > --- WEAPON (4) ------- Gauss Rifle > --- INVENTORY (20) --- Enhanced Nuclear Core Large Storage Unit Superbattery (1500) High-capacity Matter Pod (0) Experimental Sensor Array Advanced ECM Suite Improved Remote Datajack Katana Peak State ------------ > --- POWER ------------ Light Angular Momentum Engine > --- PROPULSION ------- Improved Medium Treads Improved Medium Treads Improved Medium Treads Armored Wheel > --- UTILITY ---------- Cryofiber Web Advanced Heat Sink Advanced Heat Sink Advanced Heat Sink Advanced Heat Sink High-capacity Storage Unit Advanced Visual Processing Unit Enhanced Optical Array > --- WEAPON ----------- KE Penetrator KE Penetrator KE Penetrator KE Penetrator > --- INVENTORY -------- Enhanced Nuclear Core Enhanced Nuclear Core Enhanced Nuclear Core Light Angular Momentum Engine Improved Medium Treads Improved Medium Treads Advanced Heat Sink Large Storage Unit Superbattery High-capacity Matter Pod Experimental Sensor Array Advanced ECM Suite Improved Focal Shield Coil Gun Coil Gun Coil Gun KE Penetrator KE Penetrator Heavy Rocket Launcher Katana [Rating: 88] Favorites ----------- Power Enhanced Nuclear Core Engine Ion Engine Power Core Enhanced Nuclear Core Propulsion Light Treads Treads Light Treads Leg Carbon-fiber Leg Wheel Armored Wheel Utility High-capacity Storage Unit Device Cryofiber Web Storage High-capacity Storage Unit Processor Advanced Visual Processing Unit Hackware Authchip [R/Combat] Protection Improved Light Armor Plating Weapon Improved Medium Laser Energy Gun Improved Medium Laser Energy Cannon Advanced Beam Cannon Ballistic Gun KE Penetrator Launcher Proton Missile Launcher Build | -11 -10 -10 -10 -9 -8 -7 -7 -7 -7 -5 -5 -5 -5 ------- Run | Scr Mat Min Exi Min Mat Fac Sto Gar Rec Fac Gar Fac Gar Slots Evolved 10 | . . . . . 4 2 . . . 4 . . . Power . | . . . . . . . . . . . . . . Propulsion 2 | . . . . . . . . . . 2 . . . Utility 6 | . . . . . 3 1 . . . 2 . . . Weapon 2 | . . . . . 1 1 . . . . . . . Parts Attached 167 | . 13 7 1 2 27 17 7 13 2 6 26 37 9 Power 15 | . 2 1 . . 3 1 . 2 . . 2 4 . Engine 6 | . 2 1 . . 1 . . . . . 1 1 . Core 9 | . . . . . 2 1 . 2 . . 1 3 . Reactor . | . . . . . . . . . . . . . . Propulsion 49 | . 4 2 1 . 4 5 1 3 . 2 11 11 5 Treads 23 | . 3 2 . . 2 3 . 2 . 2 . 4 5 Leg 17 | . . . . . . . . . . . 11 6 . Wheel 9 | . 1 . 1 . 2 2 1 1 . . . 1 . Hover . | . . . . . . . . . . . . . . Flight . | . . . . . . . . . . . . . . Utility 47 | . 3 2 . . 6 8 2 5 1 3 6 10 1 Device 25 | . 1 1 . . 3 4 . 2 . 2 4 8 . Storage 5 | . 2 . . . . . . . . . 1 1 1 Processor 2 | . . . . . . 1 . . . . . 1 . Hackware 1 | . . . . . . . . 1 . . . . . Protection 14 | . . 1 . . 3 3 2 2 1 1 1 . . Artifact . | . . . . . . . . . . . . . . Weapon 56 | . 4 2 . 2 14 3 4 3 1 1 7 12 3 Energy Gun 19 | . 3 1 . . 8 1 . 2 . 1 3 . . Energy Cannon 10 | . 1 1 . 1 6 . 1 . . . . . . Ballistic Gun 23 | . . . . . . 1 2 1 1 . 4 12 2 Ballistic Cannon . | . . . . . . . . . . . . . . Launcher 4 | . . . . 1 . 1 1 . . . . . 1 Special Weapon . | . . . . . . . . . . . . . . Impact Weapon . | . . . . . . . . . . . . . . Slashing Weapon . | . . . . . . . . . . . . . . Piercing Weapon . | . . . . . . . . . . . . . . Special Melee Weapon . | . . . . . . . . . . . . . . Unidentified Prototypes 7 | . 1 . . . 5 . 1 . . . . . . Corrupted Parts 3 | . . . . . . 1 . 1 . . 1 . . System Corruption 15 | . . . . . . 4 . 5 . . 6 . . Parts Lost 63 | . 1 1 . . 3 7 1 10 1 1 10 10 18 Power 5 | . . . . . . . . . . . 1 3 1 Propulsion 16 | . . . . . 1 1 1 2 . 1 2 1 7 Utility 16 | . . . . . . 4 . 4 1 . 2 1 4 Weapon 26 | . 1 1 . . 2 2 . 4 . . 5 5 6 Highest Loss Streak 18 | . 1 1 . . 2 3 1 4 1 1 7 4 18 To Critical Strikes 1 | . . . . . . . . . . . . 1 . Average Slot Usage (%) 96 | . 97 99 78 100 98 96 98 96 87 88 95 98 81 Engine 4 | . 14 14 14 14 . . . . . . . 2 . Core 4 | . . . . . 8 7 7 7 7 5 4 2 3 Treads 12 | . 20 28 17 14 8 7 7 7 7 16 3 7 17 Leg 3 | . 2 . . . . . . . . . 14 11 . Wheel 5 | . 5 . 10 14 9 6 7 7 7 5 1 2 3 Device 15 | . 10 10 . . 13 23 15 14 11 11 24 28 15 Storage 9 | . 15 14 14 14 9 7 7 7 7 5 5 5 5 Processor 3 | . . . . . . 1 7 7 7 5 5 10 11 Hackware 1 | . . . . . . . . . 7 5 5 . . Protection 8 | . . 3 14 14 21 12 15 12 7 5 3 . . Energy Gun 9 | . 19 1 . . 18 23 . . 15 17 8 . . Energy Cannon 6 | . 7 26 7 14 7 . 6 6 . . . . . Ballistic Gun 7 | . . . . . . 3 14 14 6 5 13 22 20 Launcher 1 | . . . . 14 . . 6 6 . . . . . Naked Turns . | . . . . . . . . . . . . . . Heaviest Build 79 | 13 53 54 54 53 71 75 78 78 66 74 79 74 70 Greatest Support 70 | 20 40 40 40 12 24 12 12 12 12 12 65 70 12 Greatest Overweight (x) 6 | . 3 1 3 4 5 6 6 6 5 6 6 6 5 Average Overweight (x) 3 | . 1 1 2 3 4 5 5 5 4 5 2 2 5 Largest Inventory Capacity 20 | . 20 20 20 20 20 20 20 20 20 20 20 20 20 Average Capacity 19 | . 16 20 20 20 20 20 20 20 20 20 20 20 20 Most Carried 20 | . 20 20 20 19 20 20 20 20 17 20 20 20 16 Average Carried 18 | . 15 19 19 17 19 18 19 18 17 18 18 19 14 Final Capacity 20 | 8 20 20 20 20 20 20 20 20 20 20 20 20 20 Final Carried 20 | 6 20 19 19 17 20 18 19 17 17 19 20 16 8 Class Distribution -------------------- 35% | Mutant 28% | Scavenger-Skirmisher 16% | Skirmisher 15% | Tank Dominant Class ---------------- Mutant | -10/Materials Mutant | -10/Mines Mutant | -10/Exiles Mutant | -9/Mines Tank | -8/Materials Tank | -7/Factory Skirmisher | -7/Storage Skirmisher | -7/Garrison Scavenger-Skirmisher | -7/Recycling Scavenger-Skirmisher | -5/Factory Scavenger-Skirmisher | -5/Garrison Scavenger-Skirmisher | -5/Factory Scavenger-Skirmisher | -5/Garrison Resources | -11 -10 -10 -10 -9 -8 -7 -7 -7 -7 -5 -5 -5 -5 ----------- Run | Scr Mat Min Exi Min Mat Fac Sto Gar Rec Fac Gar Fac Gar Matter Collected 4484 | 200 397 120 . 56 265 237 182 583 32 87 553 1772 . Remotely . | . . . . . . . . . . . . . . Salvage Created 7611 | . 637 308 . . 1146 584 113 954 92 186 1164 2022 405 Parts 376 | . 34 19 . . 64 26 5 42 4 9 35 125 13 Haulers Intercepted 6 | . 2 . . . 3 1 . . . . . . . Recyclers Shooed 6 | . . . . . . 1 . . . . . 5 . Parts Field Recycled . | . . . . . . . . . . . . . . Retrieved Matter . | . . . . . . . . . . . . . . Parts Self-Destructed . | . . . . . . . . . . . . . . Prevented . | . . . . . . . . . . . . . . Kills | -11 -10 -10 -10 -9 -8 -7 -7 -7 -7 -5 -5 -5 -5 ------- Run | Scr Mat Min Exi Min Mat Fac Sto Gar Rec Fac Gar Fac Gar Combat Hostiles Destroyed 131 | . 12 10 . . 18 11 2 23 . 3 19 25 8 Guns 93 | . 11 1 . . 11 10 1 11 . 3 18 24 3 Cannons 27 | . 1 9 . . 6 . 1 10 . . . . . AOE 7 | . . . . . 1 . . . . . . 1 5 Classes Destroyed 14 | . 4 1 . . 5 2 . 1 . 1 . . . Worker 9 | . . . . . 1 . . . . . . 8 . Builder 12 | . . . . . 1 1 . . . . . 10 . Hauler 6 | . 2 . . . 3 1 . . . . . . . Recycler 6 | . 1 . . . 1 . . . 1 . . 3 . Operator 1 | . . . . . 1 . . . . . . . . Watcher 2 | . . . . . . . . . . 1 . 1 . Swarmer 30 | . 3 6 . . 4 2 . 8 . 1 . 6 . Grunt 69 | . 9 2 . . 8 3 . 11 . 2 18 9 7 Brawler 1 | . . . . . . 1 . . . . . . . Duelist 2 | . . . . . 1 1 . . . . . . . Sentry 11 | . . 2 . . 4 1 1 1 . . 1 1 . Specialist 1 | . . . . . . . . 1 . . . . . Hunter 6 | . . . . . 1 . . 1 . . . 4 . Programmer 11 | . . . . . . 3 1 1 . . . 5 1 Best Kill Streak 12 | . 4 3 . . 5 5 1 7 1 2 10 12 5 Combat Bots Only 10 | . 3 3 . . 4 5 1 7 . 2 10 4 5 Max Kills in Single Turn 3 | . 1 1 . . 1 1 1 2 1 1 2 3 3 Gunslinging 1 | . . . . . . . . . . . 1 1 . Exploded 3 | . . . . . 1 . . . . . . 1 3 Melee . | . . . . . . . . . . . . . . Uniques/NPCs Destroyed . | . . . . . . . . . . . . . . Combat | -11 -10 -10 -10 -9 -8 -7 -7 -7 -7 -5 -5 -5 -5 -------- Run | Scr Mat Min Exi Min Mat Fac Sto Gar Rec Fac Gar Fac Gar Damage Taken 12692 | . 416 542 . . 645 1662 444 1578 27 291 2012 2629 2446 Core 1426 | . 85 104 . . 43 263 36 106 13 60 234 205 277 Absorbed by Shields 18 | . . . . . . . . 18 . . . . . Redirected to Shielding 347 | . . . . . 50 43 82 172 . . . . . Regen/Repaired (Parts) 108 | . 64 . . . 44 . . . . . . . . Core Remaining (%) 64 | 100 . . . 24 92 . . . 40 . . . . Volleys Fired 369 | . 33 37 . 1 50 29 9 54 . 8 59 72 17 Largest 4 | . 2 2 . 1 3 4 3 3 . 4 4 4 4 Hottest 225 | . 113 113 . 68 170 224 91 91 . 205 225 132 119 Shots Fired 1093 | . 66 47 . 1 107 104 29 153 1 30 219 287 49 Gun 950 | . 60 10 . . 69 103 20 105 1 30 219 287 46 Cannon 139 | . 6 37 . 1 38 . 9 48 . . . . . Launcher 4 | . . . . . . 1 . . . . . . 3 Special . | . . . . . . . . . . . . . . Kinetic 614 | . . . . . . 16 20 100 . 8 137 287 46 Thermal 336 | . 6 37 . 1 63 87 9 48 . 14 71 . . Explosive 3 | . . . . . . . . . . . . . 3 Electromagnetic 140 | . 60 10 . . 44 1 . 5 1 8 11 . . Robot Hit Streak 19 | . 11 10 . . 11 7 8 10 . 15 19 13 10 Robot Miss Streak 6 | . 2 3 . 1 4 4 2 3 1 2 5 6 2 Penetration Max 1 | . . . . . . 1 1 1 . . 1 1 1 Secondary Targets 19 | . . . . . 1 3 . 1 . . 4 8 2 Max Gunslinging Chain 1 | . . . . . 1 1 . 1 . . 1 1 1 Shots Hit Robots 656 | . 42 33 . . 68 60 18 85 . 21 141 149 39 Core Hits 295 | . 17 13 . . 35 23 5 35 1 9 52 76 29 Critical Kills 13 | . . . . . . . . 2 . . 5 6 . Critical Parts Destroyed 11 | . . . . . . 1 . 2 . . 1 6 1 Critical Strikes 38 | . 2 1 . . . 10 . 4 . . 8 12 1 Burn 11 | . . . . . . 9 . . . . 2 . . Meltdown 2 | . . . . . . . . 2 . . . . . Destroy 22 | . . . . . . 1 . 2 . . 6 12 1 Corrupt 3 | . 2 1 . . . . . . . . . . . Melee Attacks . | . . . . . . . . . . . . . . Impact . | . . . . . . . . . . . . . . Slashing . | . . . . . . . . . . . . . . Piercing . | . . . . . . . . . . . . . . Sneak Attacks . | . . . . . . . . . . . . . . Combat Hostiles . | . . . . . . . . . . . . . . Follow-up Attacks . | . . . . . . . . . . . . . . Damage Inflicted 16467 | . 781 611 . . 1526 1319 412 2240 57 368 2914 4550 1689 Guns 12819 | . 615 118 . . 817 1291 251 1198 . 368 2914 4182 1065 Cannons 2389 | . 102 493 . . 591 . 161 1042 . . . . . Explosions 1202 | . 64 . . . 118 28 . . . . . 368 624 Melee . | . . . . . . . . . . . . . . Ramming 57 | . . . . . . . . . 57 . . . . Kinetic 8909 | . . . . . . 216 251 1122 . 49 2024 4182 1065 Thermal 4774 | . 166 493 . . 981 1075 161 1042 . 165 691 . . Explosive 992 | . . . . . . . . . . . . 368 624 Electromagnetic 1735 | . 615 118 . . 545 28 . 76 . 154 199 . . Impact . | . . . . . . . . . . . . . . Slashing . | . . . . . . . . . . . . . . Piercing . | . . . . . . . . . . . . . . Highest Corruption 24 | . 1 1 1 1 . 15 15 20 24 . 6 10 12 Average Corruption 7 | . 1 1 1 1 . 6 15 15 21 . 6 6 10 Corruption Purged . | . . . . . . . . . . . . . . Corruption Blocked . | . . . . . . . . . . . . . . Effects 177 | . 5 8 4 1 . 18 24 47 13 . 19 31 7 Message Errors 36 | . 2 2 1 . . 3 5 8 3 . 4 6 2 Matter Fused 43 | . 1 3 2 1 . 4 7 9 3 . 3 7 3 Heat Flow Errors 25 | . . . 1 . . 2 4 9 1 . 3 5 . Energy Discharges 22 | . . 1 . . . 2 4 9 1 . . 5 . Parts Rejected 3 | . . . . . . . . . 1 . 1 1 . Data Loss (minor) 11 | . 1 2 . . . 1 1 3 1 . 1 1 . Data Loss (major) 5 | . 1 . . . . 1 1 2 . . . . . Misfires 9 | . . . . . . 2 2 2 1 . . 2 . Alerts 2 | . . . . . . . . . . . 1 1 . Misdirections 3 | . . . . . . . . . 2 . . 1 . Weapon Failures 18 | . . . . . . 3 . 5 . . 6 2 2 Overload Shots . | . . . . . . . . . . . . . . Overflow Damage 89 | . 7 2 . . . . . 23 . . . 57 . Projectiles 32 | . 7 2 . . . . . 23 . . . . . Explosions 57 | . . . . . . . . . . . . 57 . Melee . | . . . . . . . . . . . . . . Knockbacks . | . . . . . . . . . . . . . . Impact . | . . . . . . . . . . . . . . Kinetic . | . . . . . . . . . . . . . . Secondary . | . . . . . . . . . . . . . . Self-Inflicted Damage 215 | . 30 . . . 53 24 . . 27 . . . 81 Shots 6 | . 1 . . . 1 1 . . . . . . 3 Rammed 4 | . . . . . . . . . 4 . . . . Targets Rammed 4 | . . . . . . . . . 4 . . . . Kicked . | . . . . . . . . . . . . . . Crushed . | . . . . . . . . . . . . . . Highest Temperature 542 | . 129 288 164 28 226 542 117 146 . 35 250 113 108 Average Temperature 79 | . 44 87 84 16 68 186 59 49 . 20 110 71 51 Received Heat Transfer 3804 | . 195 147 . . 180 318 126 624 . 45 891 297 981 Effects 2 | . . . . . . 2 . . . . . . . Damage (minor) 1 | . . . . . . 1 . . . . . . . Damage (core) 1 | . . . . . . 1 . . . . . . . Siege Activations . | . . . . . . . . . . . . . . Robots Corrupted . | . . . . . . . . . . . . . . Combat Hostiles . | . . . . . . . . . . . . . . Parts Fried 2 | . 1 . . . . . . . . . 1 . . Impact Corruptions . | . . . . . . . . . . . . . . Robots Melted 4 | . . . . . . 1 . 2 . . 1 . . Combat Hostiles 4 | . . . . . . 1 . 2 . . 1 . . Parts Melted 23 | . . 2 . . 3 9 1 2 . 1 5 . . Heat Transferred 9293 | . 285 888 . . 1654 2701 250 1600 . 407 1508 . . Parts Sabotaged . | . . . . . . . . . . . . . . Parts Stolen . | . . . . . . . . . . . . . . Parts Stripped . | . . . . . . . . . . . . . . Power Chain Reactions 3 | . 2 . . . 1 . . . . . . . . Missiles Intercepted . | . . . . . . . . . . . . . . Alert | -11 -10 -10 -10 -9 -8 -7 -7 -7 -7 -5 -5 -5 -5 ------- Run | Scr Mat Min Exi Min Mat Fac Sto Gar Rec Fac Gar Fac Gar Peak Influence 1134 | . 291 190 . 10 290 267 83 778 404 1134 974 1048 810 Initial 1069 | . . . . . 3 105 20 42 349 1069 593 511 733 Average 343 | . 114 60 . 5 152 112 45 449 373 982 789 663 722 Maximum Alert Level 4 | . 1 . . . 1 1 . 3 2 4 3 3 3 Low Security (%) 52 | . 87 100 . 100 70 91 100 19 . . . . . Level 1 11 | . 12 . . . 29 8 . 26 79 . . . . Level 2 14 | . . . . . . . . 26 20 . 29 65 14 Level 3 20 | . . . . . . . . 27 . 82 70 34 85 Level 4 1 | . . . . . . . . . . 17 . . . Level 5 . | . . . . . . . . . . . . . . High Security . | . . . . . . . . . . . . . . Max Security . | . . . . . . . . . . . . . . Squads Dispatched 28 | . 4 . . . 2 3 6 . . 4 . 9 . Investigation . | . . . . . . . . . . . . . . Extermination 6 | . . . . . . 3 1 . . . . 2 . Reinforcement 14 | . 4 . . . 2 . 2 . . 3 . 3 . Assault 1 | . . . . . . . . . . 1 . . . Garrison 7 | . . . . . . . 3 . . . . 4 . Intercept . | . . . . . . . . . . . . . . Searches Triggered 1 | . . . . . . . . . . 1 . . . Construction Impeded 3 | . . . . . . . 1 . . . . 2 . Haulers Reinforced 1 | . . . . . . . . . . . . 1 . Active Scanning Responses . | . . . . . . . . . . . . . . Cargo Convoy Interrupts . | . . . . . . . . . . . . . . Stealth | -11 -10 -10 -10 -9 -8 -7 -7 -7 -7 -5 -5 -5 -5 --------- Run | Scr Mat Min Exi Min Mat Fac Sto Gar Rec Fac Gar Fac Gar Distress Signals 11 | . 3 . . . 3 . 1 . . 2 . 2 . Communications Jammed . | . . . . . . . . . . . . . . Distress Signals . | . . . . . . . . . . . . . . Times Spotted 232 | . 31 10 . . 30 14 9 27 16 10 24 47 14 Peak Tracking Total 11 | . 7 3 . . 4 6 6 7 6 3 11 6 11 Tactical Retreats 9 | . 1 . . . 1 . . 2 . 1 3 . 1 Traps | -11 -10 -10 -10 -9 -8 -7 -7 -7 -7 -5 -5 -5 -5 ------- Run | Scr Mat Min Exi Min Mat Fac Sto Gar Rec Fac Gar Fac Gar Traps Triggered 10 | . 1 . . . 1 1 . 4 . 2 1 . . Indirectly . | . . . . . . . . . . . . . . Trap Hack Attempts . | . . . . . . . . . . . . . . Triggered . | . . . . . . . . . . . . . . Disarmed . | . . . . . . . . . . . . . . Reprogrammed . | . . . . . . . . . . . . . . Reused . | . . . . . . . . . . . . . . Traps Extracted . | . . . . . . . . . . . . . . Installed . | . . . . . . . . . . . . . . Triggered . | . . . . . . . . . . . . . . Machines | -11 -10 -10 -10 -9 -8 -7 -7 -7 -7 -5 -5 -5 -5 ---------- Run | Scr Mat Min Exi Min Mat Fac Sto Gar Rec Fac Gar Fac Gar Machines Disabled 7 | . . . . . . 1 3 2 . . . 1 . Max in Single Turn 1 | . . . . . . 1 1 1 . . . 1 . Garrison Access 2 | . . . . . 1 . . . . 1 . . . Phase Generator 1 | . . . . . . . . 1 . . . . . Machines Sabotaged . | . . . . . . . . . . . . . . Garrisons Compromised . | . . . . . . . . . . . . . . Overloaded Fab Kills . | . . . . . . . . . . . . . . Hacking | -11 -10 -10 -10 -9 -8 -7 -7 -7 -7 -5 -5 -5 -5 --------- Run | Scr Mat Min Exi Min Mat Fac Sto Gar Rec Fac Gar Fac Gar Machines Accessed 21 | . 4 . 1 2 7 2 2 . . 2 . 1 . Terminals 12 | . 3 . . 1 4 2 1 . . 1 . . . Fabricators . | . . . . . . . . . . . . . . Repair Stations 2 | . 1 . . . 1 . . . . . . . . Recycling Units . | . . . . . . . . . . . . . . Scanalyzers 1 | . . . . . 1 . . . . . . . . Garrison Access 4 | . . . . . 1 . 1 . . 1 . 1 . Total Hacks 58 | . 9 . 1 4 29 7 2 . . 5 . 1 . Successful 44 | . 4 . 1 4 26 4 2 . . 2 . 1 . Failed 14 | . 5 . . . 3 3 . . . 3 . . . Catastrophic . | . . . . . . . . . . . . . . Database Lockouts . | . . . . . . . . . . . . . . Manual 24 | . 7 . 1 2 6 4 . . . 4 . . . Terminals 40 | . 7 . . 3 18 7 1 . . 4 . . . Fabricators . | . . . . . . . . . . . . . . Repair Stations 5 | . 2 . . . 3 . . . . . . . . Recycling Units . | . . . . . . . . . . . . . . Scanalyzers 7 | . . . . . 7 . . . . . . . . Garrison Access 4 | . . . . . 1 . 1 . . 1 . 1 . Terminal Hacks 17 | . . . 1 3 10 2 1 . . . . . . Prototype ID Bank 3 | . . . . . 3 . . . . . . . . Open Door 2 | . . . . 1 . . 1 . . . . . . Open DSF 1 | . . . . . . 1 . . . . . . . Branch Access Points 1 | . . . . . 1 . . . . . . . . Emergency Access Points 3 | . . . . 1 2 . . . . . . . . Alert Level 1 | . . . . . 1 . . . . . . . . Locate Traps 1 | . . . . . 1 . . . . . . . . Maintenance Status 1 | . . . . . 1 . . . . . . . . Investigation Status 1 | . . . . . 1 . . . . . . . . Zone Layout 2 | . . . . 1 . 1 . . . . . . . EX-Prototype ID Bank 1 | . . . 1 . . . . . . . . . . Fabricator Hacks . | . . . . . . . . . . . . . . Repair Station Hacks 4 | . 2 . . . 2 . . . . . . . . Scan Component 2 | . 1 . . . 1 . . . . . . . . Repair 2 | . 1 . . . 1 . . . . . . . . Recycling Unit Hacks . | . . . . . . . . . . . . . . Scanalyzer 7 | . . . . . 7 . . . . . . . . Insert Component 3 | . . . . . 3 . . . . . . . . Analyze 4 | . . . . . 4 . . . . . . . . Garrison Access Hacks 4 | . . . . . 1 . 1 . . 1 . 1 . Unlock Access 3 | . . . . . . . 1 . . 1 . 1 . Seal Access 1 | . . . . . 1 . . . . . . . . Unauthorized Hacks 12 | . 2 . . 1 6 2 . . . 1 . . . Terminals 12 | . 2 . . 1 6 2 . . . 1 . . . Assimilate 3 | . . . . . 2 1 . . . . . . . Botnet 9 | . 2 . . 1 4 1 . . . 1 . . . Fabricators . | . . . . . . . . . . . . . . Repair Stations . | . . . . . . . . . . . . . . Recycling Units . | . . . . . . . . . . . . . . Scanalyzers . | . . . . . . . . . . . . . . Garrison Access . | . . . . . . . . . . . . . . Data Cores Recovered . | . . . . . . . . . . . . . . Used . | . . . . . . . . . . . . . . Hacking Detections 13 | . 4 . . 1 3 1 1 . . 2 . 1 . Full Trace Events . | . . . . . . . . . . . . . . Feedback Events . | . . . . . . . . . . . . . . Feedback Blocked . | . . . . . . . . . . . . . . Robot Schematics Acquired . | . . . . . . . . . . . . . . Robots Built . | . . . . . . . . . . . . . . Authchips . | . . . . . . . . . . . . . . Time . | . . . . . . . . . . . . . . Total Robot Build Rating . | . . . . . . . . . . . . . . Part Schematics Acquired 3 | . . . . . 3 . . . . . . . . Parts Built . | . . . . . . . . . . . . . . Authchips . | . . . . . . . . . . . . . . Time . | . . . . . . . . . . . . . . Total Part Build Rating . | . . . . . . . . . . . . . . Parts Repaired 2 | . 1 . . . 1 . . . . . . . . Time 58 | . 26 . . . 32 . . . . . . . . Parts Recycled . | . . . . . . . . . . . . . . Recycled Matter . | . . . . . . . . . . . . . . Retrieved Matter . | . . . . . . . . . . . . . . Retrieved Components . | . . . . . . . . . . . . . . Parts Scanalyzed 3 | . . . . . 3 . . . . . . . . Part Schematics Acquired 3 | . . . . . 3 . . . . . . . . Parts Damaged . | . . . . . . . . . . . . . . Bothacking | -11 -10 -10 -10 -9 -8 -7 -7 -7 -7 -5 -5 -5 -5 ------------ Run | Scr Mat Min Exi Min Mat Fac Sto Gar Rec Fac Gar Fac Gar Used RIF Installer 2 | . . . . . . . . 1 . . 1 . . Patrol Navigation 1 | . . . . . . . . . . . 1 . . Robots Hacked . | . . . . . . . . . . . . . . Non-combat . | . . . . . . . . . . . . . . Combat . | . . . . . . . . . . . . . . Robot Hacks Applied . | . . . . . . . . . . . . . . Relay Couplers Released 1 | . . . . . . . . . . 1 . . . Machine Destruction 1 | . . . . . . . . . . 1 . . . Fabnet Peak Effective % . | . . . . . . . . . . . . . . Robots Rewired . | . . . . . . . . . . . . . . Allies Hacked . | . . . . . . . . . . . . . . Hacks Repelled . | . . . . . . . . . . . . . . Allies | -11 -10 -10 -10 -9 -8 -7 -7 -7 -7 -5 -5 -5 -5 -------- Run | Scr Mat Min Exi Min Mat Fac Sto Gar Rec Fac Gar Fac Gar Total Allies . | . . . . . . . . . . . . . . Largest Group . | . . . . . . . . . . . . . . Highest-Rated Group . | . . . . . . . . . . . . . . Highest-Rated Ally . | . . . . . . . . . . . . . . Total Orders . | . . . . . . . . . . . . . . Ally Attacks . | . . . . . . . . . . . . . . Total Damage . | . . . . . . . . . . . . . . Kills . | . . . . . . . . . . . . . . Allies Corrupted . | . . . . . . . . . . . . . . Allies Melted . | . . . . . . . . . . . . . . Intel | -11 -10 -10 -10 -9 -8 -7 -7 -7 -7 -5 -5 -5 -5 ------- Run | Scr Mat Min Exi Min Mat Fac Sto Gar Rec Fac Gar Fac Gar Robot Analysis Total . | . . . . . . . . . . . . . . Derelict Logs Recovered 2 | . . 2 . . . . . . . . . . . Drone Launches . | . . . . . . . . . . . . . . Drone Recoveries . | . . . . . . . . . . . . . . Exploration | -11 -10 -10 -10 -9 -8 -7 -7 -7 -7 -5 -5 -5 -5 ------------- Run | Scr Mat Min Exi Min Mat Fac Sto Gar Rec Fac Gar Fac Gar Turns Passed 9893 | . 1258 1003 393 219 1420 915 635 1031 228 589 896 1170 136 Spaces Moved 4402 | 1 640 377 254 143 677 453 206 447 132 277 314 437 44 Core . | . . . . . . . . . . . . . . Treads 681 | . 260 377 44 . . . . . . . . . . Legs 540 | 1 69 . . . . . . . . . 219 251 . Wheels 3181 | . 311 . 210 143 677 453 206 447 132 277 95 186 44 Hover . | . . . . . . . . . . . . . . Flight . | . . . . . . . . . . . . . . Fastest Speed 95 | 120 95 240 135 135 120 165 165 150 150 165 165 165 165 Average Speed 176 | 120 170 240 153 149 164 167 177 178 164 165 186 182 165 Slowest Speed 320 | 120 320 240 240 150 165 180 180 180 165 180 190 190 165 Overloaded Moves . | . . . . . . . . . . . . . . Propulsion Burnouts . | . . . . . . . . . . . . . . Robots Hopped . | . . . . . . . . . . . . . . Cave-ins Triggered . | . . . . . . . . . . . . . . Exploration Rate (%) 41 | 2 96 74 69 43 51 9 40 71 42 10 43 8 20 Regions Visited 13 Branch Regions 5 Pre-discovered Areas . | . . . . . . . . . . . . . . Known Exits Taken 4 | . . . . . 1 . 1 . . 1 . 1 . Unknown Exits Taken 7 | 1 1 1 1 1 . 1 . . 1 . . . . Scrap Searched 2 | . . 1 . 1 . . . . . . . . . Spaces Dug . | . . . . . . . . . . . . . . Terrain Destroyed 179 | . 8 . . . 5 . . 59 . . 14 53 40 Melee . | . . . . . . . . . . . . . . Projectile 43 | . . . . . 3 . . 2 . . 11 26 1 AOE 128 | . 8 . . . 2 . . 57 . . . 22 39 Terrain Rammed . | . . . . . . . . . . . . . . Walls Destroyed . | . . . . . . . . . . . . . . Machines Disabled . | . . . . . . . . . . . . . . Actions | -11 -10 -10 -10 -9 -8 -7 -7 -7 -7 -5 -5 -5 -5 --------- Run | Scr Mat Min Exi Min Mat Fac Sto Gar Rec Fac Gar Fac Gar Total 5773 | . 747 433 260 147 895 541 456 567 139 389 488 640 71 Wait 559 | . 21 . . 2 82 22 225 20 . 91 52 44 . Move 4390 | . 639 376 253 142 676 452 206 446 131 277 312 436 44 Hop . | . . . . . . . . . . . . . . Pick Up 119 | . 26 5 1 . 25 12 5 7 . 7 14 17 . Fast Attach 56 | . 5 1 . . 15 3 3 2 2 1 10 14 . Attach 85 | . 6 4 1 2 10 14 4 9 . 5 8 13 9 Detach 8 | . . . 2 . 4 . . . . . 1 . 1 Swap 26 | . 2 2 . . 2 . . 2 . . 8 10 . Drop 128 | . 15 8 3 . 31 9 4 4 1 . 19 34 . Fire 369 | . 33 37 . 1 50 29 9 54 . 8 59 72 17 Melee . | . . . . . . . . . . . . . . Ram 5 | . . . . . . . . . 5 . . . . Kick . | . . . . . . . . . . . . . . Crush . | . . . . . . . . . . . . . . Escape Stasis 28 | . . . . . . . . 23 . . 5 . . Rewire . | . . . . . . . . . . . . . . Trap . | . . . . . . . . . . . . . . Miscellaneous . | . . . . . . . . . . . . . . Route ------- -11/Scrapyard -10/Materials (discovered 5 exits: [*Mat x3] / [*Min x2]) -10/Mines -10/Exiles (discovered 2 exits: *Min x2) -9/Mines -8/Materials (discovered 3 exits: *Fac x3) -7/Factory -7/Storage -7/Garrison (discovered 2 exits: [*Rec x2]) -7/Recycling -5/Factory -5/Garrison -5/Factory -5/Garrison History --------- Turn | Location | Event 1 | -11/Scrapyard | Discovered new exit (range 0) 1 | -11/Scrapyard | Entered Materials 25 | -10/Materials | Discovered new exit (range 7) 108 | -10/Materials | Discovered new exit (range 15) 254 | -10/Materials | Discovered new exit (range 5) 311 | -10/Materials | Build established: Mutant 397 | -10/Materials | Discovered new exit (range 9) 815 | -10/Materials | Repaired Lgt. Treads 1051 | -10/Materials | Discovered new exit (range 15) 1259 | -10/Materials | Entered Mines 1288 | -10/Mines | Core integrity fell below 50% 1400 | -10/Mines | Deemed a non-threat by the Exiles lab entrance 1403 | -10/Mines | Discovered new exit (range 5) 1636 | -10/Mines | Found a damaged Exp. Sensor Array with a note attached 1642 | -10/Mines | Found Prototype Device 1860 | -10/Mines | Learned Materials terminal intel 1977 | -10/Mines | Learned location of 1 exit from Materials 2262 | -10/Mines | Entered Exiles 2294 | -10/Exiles | Discovered new exit (range 15) 2327 | -10/Exiles | Met 8R-AWN 2361 | -10/Exiles | Met EX-HEX 2406 | -10/Exiles | Met EX-BIN 2422 | -10/Exiles | Aligned with FarCom system 2423 | -10/Exiles | Given EX-Vault access code 2457 | -10/Exiles | Opened EX-Vault 2466 | -10/Exiles | Found Superbattery 2494 | -10/Exiles | Warned to stay clear of 0b10 Research branches 2569 | -10/Exiles | Met EX-DEC 2644 | -10/Exiles | Discovered new exit (range 10) 2655 | -10/Exiles | Left Exiles lab with Superbattery 2655 | -10/Exiles | Entered Mines 2850 | -9/Mines | Discovered new exit (range 9) 2868 | -9/Mines | Found the Drone Emporium 2874 | -9/Mines | Entered Materials 2874 | -8/Materials | Evolved 4 slots: Utility x3, Weapon x1 2875 | -8/Materials | Identified exit to Factory 2876 | -8/Materials | Loaded intel: 10 terminal locations 3682 | -8/Materials | Discovered exit to Factory (range 11) 3848 | -8/Materials | Build established: Tank 3885 | -8/Materials | Repaired Arm. Wheel 4240 | -8/Materials | Discovered exit to Factory (range 16) 4294 | -8/Materials | Entered Factory 4294 | -7/Factory | Evolved 2 slots: Utility x1, Weapon x1 4818 | -7/Factory | Lost 3 parts (2u1w) 5073 | -7/Factory | System corruption reached 10% 5135 | -7/Factory | Discovered new exit (range 7) 5209 | -7/Factory | Entered Storage 5392 | -7/Storage | Garrison activated, responded to threat 5581 | -7/Storage | Build established: Skirmisher 5844 | -7/Storage | Identified exit to Garrison 5844 | -7/Storage | Entered Garrison 5948 | -7/Garrison | Triggered checkpoint 6041 | -7/Garrison | Phase Generator disabled 6235 | -7/Garrison | Build established: Scavenger-Skirmisher 6324 | -7/Garrison | Triggered checkpoint 6334 | -7/Garrison | Triggered checkpoint 6345 | -7/Garrison | Destroyed 7 combat bots 6439 | -7/Garrison | Discovered new exit (range 5) 6473 | -7/Garrison | Triggered checkpoint 6480 | -7/Garrison | Core integrity fell below 50% 6632 | -7/Garrison | Build established: Skirmisher 6698 | -7/Garrison | Discovered new exit (range 19) 6776 | -7/Garrison | Triggered checkpoint 6838 | -7/Garrison | Lost 4 parts (1n3w) 6867 | -7/Garrison | Installed Relay Interface Framework 6875 | -7/Garrison | Entered Recycling 6911 | -7/Recycling | Spotter reported a threat 6929 | -7/Recycling | Spotter reported a threat 6949 | -7/Recycling | Spotter reported a threat 6970 | -7/Recycling | Spotter reported a threat 6970 | -7/Recycling | Spotter reported a threat 6979 | -7/Recycling | Spotter reported a threat 6979 | -7/Recycling | Spotter reported a threat 6992 | -7/Recycling | Spotter reported a threat 6996 | -7/Recycling | Spotter reported a threat 7017 | -7/Recycling | Spotter reported a threat 7022 | -7/Recycling | Spotter reported a threat 7023 | -7/Recycling | Spotter reported a threat 7032 | -7/Recycling | Spotter reported a threat 7049 | -7/Recycling | Spotter reported a threat 7049 | -7/Recycling | Spotter reported a threat 7051 | -7/Recycling | Spotter reported a threat 7054 | -7/Recycling | Spotter reported a threat 7059 | -7/Recycling | Discovered new exit (range 17) 7075 | -7/Recycling | Spotter reported a threat 7076 | -7/Recycling | Spotter reported a threat 7103 | -7/Recycling | Entered Factory 7103 | -5/Factory | Evolved 4 slots: Propulsion x2, Utility x2 7374 | -5/Factory | Build established: Scavenger-Skirmisher 7403 | -5/Factory | Search patrols dispatched 7692 | -5/Factory | Identified exit to Garrison 7692 | -5/Factory | Entered Garrison 7701 | -5/Garrison | Expanded RIF knowledge: Patrol Navigation 7868 | -5/Garrison | Triggered checkpoint 7878 | -5/Garrison | Triggered checkpoint 7978 | -5/Garrison | Lost 7 parts (1p1n2u3w) 8005 | -5/Garrison | Destroyed 10 combat bots 8210 | -5/Garrison | Triggered checkpoint 8564 | -5/Garrison | Discovered new exit (range 10) 8588 | -5/Garrison | Entered Factory 9217 | -5/Factory | Garrison activated, responded to threat 9681 | -5/Factory | System corruption reached 10% 9685 | -5/Factory | Garrison activated, responded to threat 9721 | -5/Factory | Lost 4 parts (1n3w) 9757 | -5/Factory | Identified exit to Garrison 9758 | -5/Factory | Entered Garrison 9831 | -5/Garrison | Triggered checkpoint 9832 | -5/Garrison | Triggered checkpoint 9840 | -5/Garrison | Core integrity fell below 50% 9894 | -5/Garrison | Self-destructed Last Messages --------------- 09866_ G-50 Soldier destroyed. 09866_ Switching to secondary target: G-50 Soldier. 09866_ Slug penetrates G-50 Soldier. 09866_ Critical hit (Burn: +37). 09866_ Gauss Rifle destroyed. 09869_ Slug penetrates G-50 Soldier. 09869_ Slug penetrates Wall. 09869_ Slug penetrates G-50 Soldier. 09872_ Gauss Rifle destroyed. 09872_ Imp. Medium Treads destroyed. 09874_ Slug penetrates Wall. 09876_ Coil Gun destroyed. 09878_ Slug penetrates G-50 Soldier. 09882_ Imp. Medium Treads destroyed. 09884_ Slug penetrates G-50 Soldier. 09884_ KE Penetrator destroyed. 09886_ Imp. Medium Treads destroyed. 09888_ G-50 Soldier destroyed. 09893_ The unstable cave ceiling collapses. 09893_ Hvy. Rocket Launcher destroyed. Map ----- +----------------------------------------------------+ | ?????????????????????????????????????????????????? | | ?????????????????????????????????????????????????? | | ???????????????????????? ???????????????????????? | | ???????????????????????? ???????????????????????? | | ???????????????????????? ???????????????????????? | | ???????????????????????? ???????????????????????? | | ???????????????????????# ???????????????????????? | | ???????????????????????# ???????????????????????? | | ??????????????????????## ?????"##???????????????? | | ??????????????????????# ????? ?? #???????????? | | ?????????????????????? ???? ??? #???????????? | | ?????????????????????? ???? ?? #???????????? | | ??????????????????????# #??? #? #???????????? | | ?????????????????????## #?? ## #???????????? | | ????????????????????? ?? "???????????? | | ????????????????????? ?? ??g??????????? | | ?????????????????????? ? ???g??????????? | | ?????????????????????? ? ????g??????????? | | ????????????????????### ## #????????????????? | | ????????????####??### #????????????????? | | ????????????# ??? g==* ?????????????????? | | ????????????# ???? %[=!! ???????????????????? | | ????????????# #????## *%!=%?????????????????????? | | ????????????# #???## g% #?????????????????????? | | ????????????# #???# #?????????????????????? | | ???????????## #???# # @ #?????????????????????? | | ???????????? # g% #????????????????????? | | ????????????#^ #### #????????????????????? | | ????????????# #??## %% #????????????????????? | | ????????????# ##### = #????????????????????? | | ????????????# #????????????????????? | | ????????????# ###????????????????????? | | ????????????# ########## ??????????????????????? | | ????????????# #????????###??????????????????????? | | ????????????# #?????????????????????????????????? | | ????????????# #?????????????????????????????????? | | ????????????# #?????????????????????????????????? | | ????????????# #?????????????????????????????????? | | ????????????# #?????????????????????????????????? | | ????????????# #?????????????????????????????????? | | ????????????# #?????????????????????????????????? | | ????????????# #?????????????????????????????????? | | ???########## #?????????????????????????????????? | | ???# #?????????????????????????????????? | | ???# #?????????????????????????????????? | | ???# #########?????????????????????????????????? | | ???# #?????????????????????????????????????????? | | ???#####?????????????????????????????????????????? | | ?????????????????????????????????????????????????? | | ?????????????????????????????????????????????????? | +----------------------------------------------------+ Best States ------------- Heat Dissipation 124 Energy Generation 18 Energy Capacity 1800 Matter Stores 300 Matter Capacity 300 Sight Range 22 Terrain Scan Density 10 Base Temperature (-) 100 Armor Coverage 375 Resistance: KI 25 Resistance: EM 15 Core Shielding 20 Power Shielding 66 Weapon Shielding 66 Evasion (%) 55 Recoil Reduction 4 Particle Charging 15 Authchip Count 3 Item Schematics ----------------- Enh. Nuclear Core | -8/Materials | Scanalyzed Particle Charger | -8/Materials | Scanalyzed Arm. Wheel | -8/Materials | Scanalyzed Robot Schematics ------------------ None Fabricated ------------ Nothing Alien Tech Used ----------------- None Achievements -------------- None Challenges ------------ None Game ------ Seed ArmoredMassBeam Manual? 1 Play Time 02:04:28 Cumulative 123.1 hours Start 2022.03.25 @ 16:46:03 End 2022.03.26 @ 11:14:48 Sessions 3 Manual Loads 0 Difficulty Rogue Special Mode None Game No. 55 Rogue 55 Adventurer 0 Explorer 0 Win Type - Total 1 Types 1/0/0/0/0/0/0/0/0 Lore% 31 Gallery% 56 Achievement% 42 Wizard Run 0 Options --------- ASCII 0 Keyboard 0 Movement Numpad Keybinds 0 Fullscreen 1 Font 18/Terminus Map View 76x50 Tactical HUD 1 Map Filters NONE Filters NONE Steam 1 RUN: 31edb48c-e293-4244-8824-b7b705aa1dbb